{"text_format":"1","workbook":"xlsx","n_sheets":1,"sheets":["IP R"],"not_rendered":{"charts":0,"images":0,"macros":0,"external_links":0,"defined_names":1,"comments":0,"pivot_tables":0},"unopened":[],"bounds":{"document_bytes":16777216,"sheet_cells":100000,"rows_first":2000,"rows_last":500,"rows_between":2000,"halvings":0,"cell_chars":16384,"cell_head_chars":4096},"cells_cut":0,"cells_raw":0,"read":"whole","date_system":"1900"}

{"sheet":"IP R","index":0,"n_rows":96,"n_cols":10,"rows_kept":96,"cut":false,"hidden":false,"merged":[[25,4,27,4],[25,5,27,5],[37,1,39,1],[31,1,32,1],[25,1,27,1],[25,2,27,2],[25,3,27,3],[14,1,14,9],[40,1,42,1],[15,2,15,5],[22,2,24,2],[25,6,27,6],[25,7,27,7],[19,1,21,1],[19,2,21,2],[19,3,21,3],[19,4,21,4],[19,5,21,5],[16,1,18,1],[16,2,16,3],[16,4,16,5],[17,2,18,2],[17,3,18,3],[22,5,24,5],[22,1,24,1],[17,6,18,6],[17,7,18,7],[16,6,16,7],[19,6,21,6],[19,7,21,7],[22,6,24,6],[22,7,24,7],[17,4,18,4],[17,5,18,5],[46,1,46,7],[47,1,48,1],[47,2,48,2],[47,3,48,6],[47,7,49,7],[63,2,64,2],[63,3,64,6],[63,7,65,7],[50,1,52,1],[50,2,52,2],[50,7,52,7],[53,1,55,1],[53,2,55,2],[53,7,55,7],[56,1,58,1],[56,2,58,2],[56,7,58,7],[62,1,62,7],[63,1,64,1],[72,1,74,1],[72,2,74,2],[72,7,74,7],[66,1,68,1],[66,2,68,2],[66,7,68,7],[69,1,71,1],[69,2,71,2],[69,7,71,7],[6,1,6,9],[30,1,30,9],[34,8,36,9],[37,8,39,9],[15,6,15,9],[22,8,24,8],[22,9,24,9],[25,8,27,8],[25,9,27,9],[16,8,16,9],[17,8,18,8],[17,9,18,9],[19,8,21,8],[19,9,21,9],[22,3,24,3],[22,4,24,4],[43,2,43,3],[31,8,32,9],[33,8,33,9],[43,8,43,9],[33,1,33,3],[40,8,42,9],[31,4,32,7],[31,2,32,3],[34,2,36,3],[37,2,39,3],[40,2,42,3],[34,1,36,1]]}
[]
[null,"OBRAZAC AO9 - IZVJEŠĆE PRODAVATELJA O PREUZETIM KOLIČINAMA OTPADNE AMBALAŽE OD PIĆA U SUSTAVU POVRATNE NAKNADE"]
[]
[]
[null,"ZA MJESEC: _________________ GODINA ______________"]
[]
[null,"I. PODACI O PRODAVATELJU/OSOBI KOJA UPRAVLJA RECIKLAŽNIM DVORIŠTEM"]
[null,"Naziv:",null,null,null,"Tel/fax:"]
[null,"Adresa sjedišta tvrtke:",null,null,null,"OIB"]
[null,null,null,null,null,"IBAN:"]
[null,"Adresa preuzimatelja*:",null,null,null,"Email:"]
[null,"Osoba za kontakt:"]
[]
[]
[null,"II. PODACI O OTPADNOJ AMBALAŽI PREUZETOJ OD POTROŠAČA"]
[null,null,"RUČNO",null,null,null,"AUTOMATIZIRANI UREĐAJ - RVM"]
[null,"VRSTA OTPADNE AMBALAŽE","TRGOVINA NA MALO / RECIKLAŽNO DVORIŠTE",null,"TRGOVINA NA VELIKO***",null,"TRGOVINA NA MALO / RECIKLAŽNO DVORIŠTE",null,"TRGOVINA NA VELIKO***"]
[null,null," PREUZETA KOLIČINA (kom)"," ISPLAĆENA NAKNADA POTROŠAČIMA  (0,5 KN/KOM)"," PREUZETA KOLIČINA (kom)"," ISPLAĆENA NAKNADA POTROŠAČIMA  (0,5 KN/KOM)","PREUZETA KOLIČINA (KOM)"," ISPLAĆENA NAKNADA POTROŠAČIMA  (0,5 KN/KOM)"," PREUZETA KOLIČINA (kom)"," ISPLAĆENA NAKNADA POTROŠAČIMA  (0,5 KN/KOM)"]
[]
[null,"PET",null,{"$f":"0.5*C20","v":0},null,{"$f":"0.5*E20","v":0},null,{"$f":"0.5*G20","v":0},null,{"$f":"0.5*I20","v":0}]
[]
[]
[null,"STAKLO",null,{"$f":"0.5*C23","v":0},null,{"$f":"0.5*E23","v":0},null,{"$f":"0.5*G23","v":0},null,{"$f":"0.5*I23","v":0}]
[]
[]
[null,"AL-FE LIMENKE",null,{"$f":"0.5*C26","v":0},null,{"$f":"0.5*E26","v":0},null,{"$f":"0.5*G26","v":0},null,{"$f":"0.5*I26","v":0}]
[]
[]
[null,"UKUPNO:",{"$f":"+SUM(C20:C28)","v":0},0,0,0,0,0,0,0]
[]
[null,"III. PODACI O OTPADNOJ AMBALAŽI  PREDANOJ SAKUPLJAČU (IZ POSTUPKA RUČNOG PREUZIMANJA)"]
[null,"VRSTA OTPADNE AMBALAŽE","UKUPNA PREDANA KOLIČINA (kom)",null,"KOLIČINA PO SAKUPLJAČIMA ",null,null,null,"PRIVREMENO NA SKLADIŠTU  PRODAVATELJA/RECIKLAŽNOG DVORIŠTA\n (kom) **"]
[]
[null,null,null,null,"NAZIV SAKUPLJAČA","KOMADI","BROJ VREĆA","KG"]
[null,"PET",{"$f":"+SUM(F35:F37)","v":0}]
[]
[]
[null,"STAKLO",{"$f":"+SUM(F38:F40)","v":0}]
[]
[]
[null,"AL-FE LIMENKE",{"$f":"+SUM(F41:F43)","v":0}]
[]
[]
[null,"UKUPNO:",{"$f":"+C35+C38+C41","v":0}]
[null,"Napomena: Ispunjava prodavatelj/osoba koja upravlja reciklažnim dvorištem (ručno preuzimanje otpadne ambalaže)"]
[]
[null,"IV. PODACI O OTPADNOJ AMBALAŽI  PREDANOJ SAKUPLJAČU (IZ AUTOMATIZIRANOG POSTUPKA PREUZIMANJA - RVM)"]
[null,"VRSTA OTPADNE AMBALAŽE","UKUPNA PREDANA KOLIČINA (kom)","KOLIČINA PO SAKUPLJAČIMA ",null,null,null,"PRIVREMENO NA SKLADIŠTU (kom) ** PRODAVATELJA"]
[]
[null,null,null,"NAZIV SAKUPLJAČA","KOMADI","BROJ VREĆA","KG"]
[null,"PET",{"$f":"+SUM(E51:E53)","v":0}]
[]
[]
[null,"STAKLO",{"$f":"+SUM(E54:E56)","v":0}]
[]
[]
[null,"AL-FE LIMENKE",{"$f":"+SUM(E57:E59)","v":0}]
[]
[]
[null,"UKUPNO:",{"$f":"+SUM(C51:C59)","v":0}]
[null,"Napomena: Ispunjava prodavatelj/osoba koja upravlja reciklažnim dvorištem (preuzimanje otpadne ambalaže putem RVM)"]
[]
[null,"V. PODACI O OTPADNOJ AMBALAŽI  PREDANOJ SAKUPLJAČU (UKUPNO III. + IV.)"]
[null,"VRSTA OTPADNE AMBALAŽE","UKUPNA PREDANA KOLIČINA (kom)","KOLIČINA PO SAKUPLJAČIMA ",null,null,null,"PRIVREMENO NA SKLADIŠTU PRODAVATELJA \n (kom) ** "]
[]
[null,null,null,"NAZIV SAKUPLJAČA","KOMADI","BROJ VREĆA","KG"]
[null,"PET",{"$f":"+SUM(E67:E69)","v":0},null,null,null,null,{"$f":"+H51+I35","v":0}]
[]
[]
[null,"STAKLO",{"$f":"+SUM(E70:E72)","v":0},null,null,null,null,{"$f":"+H54+I38","v":0}]
[]
[]
[null,"AL-FE LIMENKE",{"$f":"+SUM(E73:E75)","v":0},null,null,null,null,{"$f":"+H57+I41","v":0}]
[]
[]
[null,"UKUPNO:",{"$f":"+SUM(C67:C75)","v":0},null,null,null,null,{"$f":"SUM(H67:H75)","v":0}]
[null,"Napomena: Ispunjava prodavatelj/osoba koja upravlja reciklažnim dvorištem (ukupno predana količina sakupljača preuzeta putem  RVM i ručno)"]
[]
[null,"PRILOŽENA DOKAZNA DOKUMENTACIJA: IZVOD IZ BLAGAJNE ZA ISPLAĆENU POVRATNU NAKNADU, OVJERENA PRATEĆA DOKUMENTACIJA OD STRANE"]
[null,"SAKUPLJAČA (Obrazac AO8)"]
[]
[]
[]
[]
[null,"OSOBA ODGOVORNA ZA TOČNOST PODATAKA:"]
[null,null,null,null,"ime i prezime"]
[]
[]
[null,null,null,null,"potpis",null,"M.P."]
[null,"Napomena: "]
[null,"Izvješće služi kao zahtjev za povrat sredstava isplaćenih kupcima za vraćenu ambalažu."]
[]
[null,"* Ako se prikupljanje obavlja na više prodajnih mjesta dostaviti popis s adresama lokacija prikupljanja ambalažnog otpada"]
[null," Popis lokacija prikupljanja ambalažnog otpada potrebno je dostaviti jednom kao i prilikom svake naredne promjene popisa lokacija"]
[null,"** Zadnje stanje skladišta prodavatelja - ukupno, evidentirano na dan izrade izvještaja"]
[null,"*** Za prikupljene količine ambalažnog otpada putem trgovine na veliko potrebno je dostaviti ovjereni blagajnički izvještaj"]